bitfinex-derivatives/quotes_ETHF0:USTF0_20240829
["timestamp","ask_amount","ask_price","bid_price","bid_amount"]
[1724917189925,0.3632,2551.0,2550.9,7.04764911]
[1724917190228,0.3632,2551.0,2550.9,7.04766053]
[1724917190523,1.18435,2551.1,2550.9,7.04766053]
[1724917190725,0.3829,2551.1,2551.0,4.78835399]
[1724917190927,1.02295496,2551.3,2551.2,0.39183]
[1724917191330,5.21795496,2551.4,2551.3,0.39181]
[1724917191722,9.35883811,2551.4,2551.3,0.39181]
[1724917191923,5.16383811,2551.4,2551.3,0.39181]
[1724917193127,5.16383811,2551.4,2551.2,1.4184333]
[1724917194326,1.02295496,2551.3,2551.2,1.4184333]
[1724917194522,1.02295496,2551.3,2551.2,1.0266133]
[1724917194732,5.26990912,2551.3,2551.2,1.4184433]
[1724917195334,5.26990912,2551.3,2551.2,1.0266133]
[1724917195632,5.26990912,2551.3,2551.2,1.4184433]
[1724917195828,4.24695416,2551.3,2551.2,4.5684433]
[1724917196133,5.194202,2551.4,2551.2,4.5684433]
[1724917196332,1.02295496,2551.3,2551.2,4.5684433]
[1724917196531,1.02295496,2551.3,2551.2,4.1766133]
[1724917196729,5.18562139,2551.3,2551.2,4.5684433]
[1724917198036,4.16266643,2551.3,2551.2,4.5684433]
[1724917198235,5.18562139,2551.3,2551.2,4.5684433]
[1724917198433,5.18562139,2551.3,2551.2,3.15]
[1724917198434,5.57743139,2551.3,2551.2,3.15]
[1724917198642,9.49743139,2551.3,2551.2,4.1766133]
[1724917199346,9.49743139,2551.3,2551.2,3.15]
[1724917201432,0.39183,2551.2,2551.1,4.2344133]
[1724917201633,1.77898496,2551.2,2551.1,4.2344133]
[1724917201929,5.86835406,2551.2,2551.1,4.2344133]
[1724917202128,4.8453991,2551.2,2551.1,3.2078]
[1724917202337,6.38084722,2551.2,2551.1,3.2078]
[1724917203332,4.8453991,2551.2,2551.1,3.2078]
[1724917204134,0.39185,2551.1,2551.0,1.0266133]
[1724917204335,1.77803943,2551.1,2551.0,1.4184733]
[1724917204543,0.75355,2551.1,2551.0,1.0266133]
[1724917204845,0.75355,2551.1,2550.9,7.90070977]
[1724917204846,0.39186,2551.0,2550.9,4.18249243]
[1724917205043,0.78156,2551.0,2550.9,4.18249243]
[1724917205641,5.31045777,2551.0,2550.9,4.18249243]
[1724917206932,5.31045777,2551.0,2550.9,1.03249243]
[1724917207141,9.23045777,2551.0,2550.9,1.03249243]
[1724917207543,9.23045777,2551.0,2550.9,0.00587913]
[1724917207937,10.2549472,2551.0,2550.9,0.00587913]
[1724917208143,11.2346072,2551.0,2550.9,0.00587913]
[1724917208446,1.37163,2550.8,2550.7,1.02678349]
[1724917208748,1.37163,2550.8,2550.6,3.2078]
[1724917208749,3.4140982,2550.8,2550.6,4.23458349]
[1724917208932,1.13181,2550.7,2550.6,4.23458349]
[1724917209130,2.11159,2550.7,2550.6,4.23458349]
[1724917209341,6.43714971,2550.7,2550.6,3.2078]
[1724917210245,5.45736971,2550.7,2550.6,3.2078]
[1724917211643,6.48172791,2550.7,2550.6,3.2078]
[1724917212451,5.06545971,2550.7,2550.6,3.2078]
[1724917213135,5.45736971,2550.7,2550.6,3.2078]
[1724917214448,5.45736971,2550.7,2550.5,3.54193]
[1724917216350,5.06545971,2550.7,2550.5,3.54193]
[1724917217451,5.06545971,2550.7,2550.5,44.34193]
[1724917217952,5.06545971,2550.7,2550.6,0.39192]
[1724917218153,5.45736971,2550.7,2550.6,0.39192]
[1724917218556,5.45736971,2550.7,2550.5,44.34193]
[1724917220052,5.45736971,2550.7,2550.6,0.39192]
[1724917220350,5.45736971,2550.7,2550.5,44.34193]
[1724917221553,5.06545971,2550.7,2550.5,44.34193]
[1724917221753,5.45736971,2550.7,2550.5,44.34193]
[1724917222348,5.45736971,2550.7,2550.6,0.39192]
[1724917222842,5.06545971,2550.7,2550.6,0.39192]
[1724917223153,5.45736971,2550.7,2550.6,0.39192]
[1724917223851,5.45736971,2550.7,2550.5,44.34193]
[1724917224456,5.45736971,2550.7,2550.6,0.39192]
[1724917224654,5.45736971,2550.7,2550.5,44.34193]
[1724917225254,0.79412,2550.6,2550.5,44.34193]
[1724917225455,0.4022,2550.6,2550.5,44.34193]
[1724917225658,4.92635521,2550.6,2550.5,44.34193]
[1724917226665,5.31827521,2550.6,2550.5,44.34193]
[1724917227558,4.92635521,2550.6,2550.5,44.34193]
[1724917229858,6.72827521,2550.6,2550.5,43.95]
[1724917230157,7.75263341,2550.6,2550.5,43.95]
[1724917230765,11.67343341,2550.6,2550.5,3.15]
[1724917230954,11.67258519,2550.6,2550.5,3.15]
[1724917231155,11.67258173,2550.6,2550.5,3.15]
[1724917232457,12.65239173,2550.6,2550.5,3.15]
[1724917232653,11.62888521,2550.6,2550.5,3.15]
[1724917232861,12.65228368,2550.6,2550.5,3.15]
[1724917236166,11.62888521,2550.6,2550.5,3.15]
[1724917236363,12.65209985,2550.6,2550.5,3.15]
[1724917237061,1.37179,2550.5,2550.4,0.00587913]
[1724917237263,7.80788812,2550.5,2550.4,0.00587913]
[1724917237468,16.71206961,2550.5,2550.4,0.00587913]
[1724917237865,18.76026675,2550.5,2550.4,0.00587913]
[1724917238065,16.71206961,2550.5,2550.4,0.00587913]
[1724917238462,10.71206961,2550.5,2550.4,0.00587913]
[1724917238669,16.71206961,2550.5,2550.4,0.00587913]
[1724917238861,12.24650392,2550.5,2550.4,0.00587913]
[1724917239169,10.71206961,2550.5,2550.4,0.00587913]
[1724917239966,8.75236961,2550.5,2550.4,0.00587913]
[1724917240172,5.85447269,2550.5,2550.4,0.00587913]
[1724917240466,4.43962961,2550.5,2550.4,0.76952913]
[1724917241070,4.17549273,2550.6,2550.5,0.39194]
[1724917241269,1.02290308,2550.7,2550.6,0.39192]
[1724917241469,1.02290308,2550.8,2550.6,0.39192]
[1724917241661,4.17549273,2550.7,2550.6,0.39192]
[1724917241864,4.83284315,2550.8,2550.5,4.32103]
[1724917242078,1.8019,2550.8,2550.5,4.32103]
[1724917242372,4.44094315,2550.7,2550.5,4.32103]
[1724917243773,4.83285315,2550.7,2550.5,3.9291]
[1724917243977,4.83285315,2550.7,2550.5,4.32104]
[1724917244273,4.44094315,2550.7,2550.5,4.32104]
[1724917244672,4.83285315,2550.7,2550.5,4.32104]
[1724917245076,4.44094315,2550.7,2550.5,4.32104]
[1724917245568,1.80192,2550.6,2550.5,3.148]
[1724917245777,0.39194,2550.5,2550.4,0.00587913]
[1724917245976,7.08559,2550.5,2550.4,0.00587913]
[1724917246163,11.30394831,2550.5,2550.4,0.00587913]
[1724917246870,13.35214545,2550.5,2550.4,0.00587913]
[1724917247174,19.35214545,2550.5,2550.4,0.00587913]
[1724917247376,17.30394831,2550.5,2550.4,0.00587913]
[1724917247683,19.35201395,2550.5,2550.4,0.00587913]
[1724917248469,19.35201788,2550.5,2550.4,0.00587913]
[1724917249085,0.39205,2549.8,2549.5,0.39209]
[1724917249276,2.21147,2549.7,2549.5,0.3969]
[1724917249475,2.21147,2549.7,2549.5,0.78899]
[1724917249476,5.96160476,2549.7,2549.5,0.78899]
[1724917249669,6.35366476,2549.7,2549.5,0.78899]
[1724917249867,6.98549487,2549.7,2549.5,0.3969]
[1724917250071,5.96160476,2549.7,2549.5,0.3969]
[1724917250379,6.35367476,2549.7,2549.5,0.3969]
[1724917250572,5.96160476,2549.7,2549.5,0.78899]
[1724917251074,4.55160476,2549.7,2549.6,0.39208]
[1724917251484,4.14220476,2549.7,2549.6,0.39208]
[1724917251972,4.14220476,2549.7,2549.5,0.78898]
[1724917253182,4.53427476,2549.7,2549.5,0.3969]
[1724917253481,4.53427476,2549.7,2549.5,0.78899]
[1724917253981,1.80208,2549.6,2549.3,3.60578913]
[1724917254274,4.88391528,2549.5,2549.3,4.01568913]
[1724917254686,4.49182528,2549.5,2549.3,4.01568913]
[1724917255584,4.88392528,2549.5,2549.3,4.01568913]
[1724917256088,0.39211,2549.4,2549.3,3.62357913]
[1724917256276,4.88392528,2549.5,2549.3,3.62357913]
[1724917256477,4.48369927,2549.4,2549.3,3.62357913]
[1724917256780,0.3921,2549.5,2549.3,4.01569913]
[1724917257087,4.47145398,2549.4,2549.3,3.62357913]
[1724917257286,4.47145398,2549.4,2549.3,4.01569913]
[1724917257478,4.86355398,2549.5,2549.3,4.01569913]
[1724917257784,0.39211,2549.4,2549.3,3.62357913]
[1724917257996,4.88255424,2549.4,2549.3,3.62357913]
[1724917258285,0.77351,2549.4,2549.3,3.62357913]
[1724917258680,4.88255424,2549.4,2549.3,3.62357913]
[1724917259977,4.88255424,2549.4,2549.3,4.01569913]
[1724917260483,4.49044424,2549.4,2549.3,4.01569913]
[1724917260784,4.10904424,2549.4,2549.3,4.01569913]
[1724917261078,1.80209,2549.6,2549.3,4.01569913]
[1724917261281,4.16647133,2549.5,2549.4,0.3921]
[1724917261590,1.80209,2549.6,2549.4,0.3921]
[1724917261888,4.16647133,2549.5,2549.4,0.3921]
[1724917265386,4.16647133,2549.5,2549.4,4.3145]
[1724917265883,4.16647133,2549.5,2549.4,45.1145]
[1724917267880,4.55856133,2549.5,2549.4,40.8]
[1724917268080,4.55856133,2549.5,2549.4,41.19211]
[1724917268287,4.55856133,2549.5,2549.4,40.8]
[1724917268992,4.55856133,2549.5,2549.3,0.80788913]
[1724917268993,0.39211,2549.4,2549.3,0.00587913]
[1724917269293,5.22827182,2549.4,2549.3,0.00587913]
[1724917270088,4.83616182,2549.4,2549.3,0.39799913]
[1724917270981,4.43996182,2549.4,2549.3,0.39799913]
[1724917271185,3.2078,2549.8,2549.7,0.39206]
[1724917271387,1.81637913,2549.9,2549.8,0.39205]
[1724917271786,6.15016221,2549.9,2549.8,0.39205]
[1724917277696,4.33966221,2549.9,2549.8,0.39205]
[1724917277901,4.33966221,2549.9,2549.8,14.50157]
[1724917277902,0.00587913,2549.9,2549.8,14.50157]
[1724917278093,1.43689011,2550.3,2550.2,0.39198]
[1724917278289,0.413,2550.3,2550.1,0.39199]
[1724917278496,4.38867639,2550.2,2550.1,0.39199]
[1724917278696,5.19364639,2550.3,2550.1,0.39199]
[1724917278891,0.80497,2550.3,2550.1,0.39199]
[1724917279097,4.19462549,2550.2,2550.1,0.39199]
[1724917279296,5.60462549,2550.2,2550.1,0.39199]
[1724917279500,5.60462549,2550.2,2550.0,3.538]
[1724917279501,5.99661549,2550.2,2550.0,3.538]
[1724917280194,5.60462549,2550.2,2550.1,0.392]
[1724917282601,4.19462549,2550.2,2550.1,0.392]
[1724917284995,4.19462549,2550.2,2550.1,0.8124]
[1724917287501,0.38217913,2550.5,2550.4,0.39195]
[1724917287903,4.63131989,2550.5,2550.4,0.39195]
[1724917290901,4.63131989,2550.5,2550.3,0.39196]
[1724917291109,5.02325989,2550.5,2550.3,0.39196]
[1724917291304,5.65521,2550.5,2550.4,0.39195]
[1724917291610,4.63131989,2550.5,2550.4,0.39195]
[1724917291907,4.63131989,2550.5,2550.3,0.39196]
[1724917292109,4.63131989,2550.5,2550.4,0.39195]
[1724917292508,4.63131989,2550.5,2550.1,0.19111179]
[1724917292708,4.63131989,2550.5,2550.4,0.39195]
[1724917293906,5.02325989,2550.5,2550.4,0.39195]
[1724917294304,5.02325989,2550.5,2550.2,3.2078]
[1724917294305,5.02325989,2550.5,2550.3,0.39196]
[1724917295405,4.63131989,2550.5,2550.4,0.39195]
[1724917297024,4.25501989,2550.5,2550.4,4.31275]
[1724917297224,0.41,2550.8,2550.7,0.39191]
[1724917297721,4.50038467,2550.8,2550.7,0.39191]
[1724917297922,4.50038467,2550.8,2550.7,0.81981]
[1724917298826,4.50038467,2550.8,2550.7,0.39191]
[1724917299129,4.88958467,2550.8,2550.7,3.53391]
[1724917301531,5.28148467,2550.8,2550.7,3.142]
[1724917303229,4.88958467,2550.8,2550.7,3.53391]
[1724917303630,4.50038467,2550.8,2550.7,3.53391]
[1724917306532,0.00587913,2551.0,2550.9,0.39188]
[1724917306726,0.38237913,2551.0,2550.9,0.39188]
[1724917306935,4.83402158,2551.0,2550.9,0.39188]
[1724917308838,5.22588158,2551.0,2550.8,0.78278]
[1724917309032,6.63588158,2551.0,2550.8,0.78278]
[1724917309334,6.24402158,2551.0,2550.9,0.39188]
[1724917309930,4.83402158,2551.0,2550.9,0.39188]
[1724917311734,4.83402158,2551.0,2550.9,3.59968]
[1724917312240,4.83402158,2551.0,2550.9,3.2078]
[1724917312436,6.24402158,2551.0,2550.9,3.59968]
[1724917313036,6.63588158,2551.0,2550.9,3.2078]
[1724917314434,6.63588158,2551.0,2550.9,3.59968]
[1724917315640,6.63588158,2551.0,2550.9,0.39188]
[1724917316229,0.39188,2550.9,2550.8,0.39188]
[1724917316428,6.63589158,2551.0,2550.8,3.52988]
[1724917316633,4.45499768,2550.9,2550.8,3.52988]
[1724917317437,4.84687768,2550.9,2550.8,3.52988]
[1724917317937,4.84687768,2550.9,2550.8,3.138]
[1724917318136,4.84688768,2550.9,2550.7,0.39778913]
[1724917318336,4.84688768,2550.9,2550.8,3.138]
[1724917320445,4.45499768,2550.9,2550.8,3.52989]
[1724917321839,4.84687768,2550.9,2550.8,3.138]
[1724917322948,4.84687768,2550.9,2550.8,3.52989]
[1724917322949,4.45499768,2550.9,2550.8,3.52989]
[1724917323947,6.25687768,2550.9,2550.8,2.5433]
[1724917324147,1.37163,2550.8,2550.7,0.00587913]
[1724917324339,2.82691787,2550.8,2550.7,0.00587913]
[1724917324544,11.57898252,2550.8,2550.7,0.00587913]
[1724917327141,7.65818252,2550.8,2550.7,0.00587913]
[1724917327644,6.24818252,2550.8,2550.7,0.00587913]
[1724917328950,4.71234735,2550.8,2550.7,0.00587913]
[1724917331046,5.85931121,2550.8,2550.7,0.39778913]
[1724917331251,4.32045735,2550.8,2550.7,0.39778913]
[1724917331451,5.85931121,2550.8,2550.7,0.39778913]
[1724917332350,9.06711121,2550.8,2550.7,0.39778913]
[1724917333844,9.45900121,2550.8,2550.7,0.39778913]
[1724917334049,9.06711121,2550.8,2550.7,0.39778913]
[1724917336153,9.45900121,2550.8,2550.7,0.39778913]
[1724917336459,7.92014735,2550.8,2550.7,0.39778913]
[1724917336649,7.52825735,2550.8,2550.7,0.39778913]
[1724917337049,1.02683404,2550.9,2550.8,0.39189]
[1724917337247,1.03259501,2551.0,2550.9,0.39188]
[1724917337451,1.03259501,2551.0,2550.9,41.19188]
[1724917337756,1.03259501,2551.0,2550.9,49.64744509]
[1724917338253,0.00587913,2551.0,2550.9,51.60731718]
[1724917338957,0.00587913,2551.0,2550.9,50.58065209]
[1724917339148,0.00587913,2551.0,2550.9,51.60700689]
[1724917339350,1.02671588,2551.1,2551.0,0.39186]
[1724917339548,1.02671588,2551.2,2551.1,0.39185]
[1724917339852,5.39446977,2551.2,2551.1,0.39185]
[1724917340056,5.39446977,2551.2,2551.1,1.41797883]
[1724917340256,1.02671588,2551.2,2551.1,5.33797883]
[1724917341045,1.02671588,2551.3,2551.2,0.39183]
[1724917343861,5.87544529,2551.3,2551.1,0.39184]
[1724917344058,1.02653797,2551.2,2551.1,0.39184]
[1724917344561,5.37321395,2551.2,2551.1,0.39184]
[1724917345759,5.37321395,2551.2,2551.0,4.62577883]
[1724917345960,0.7555,2551.1,2551.0,4.62577883]
[1724917346160,1.1313,2551.1,2551.0,4.62577883]
[1724917346863,1.1313,2551.1,2551.0,3.59965]
[1724917347362,1.1313,2551.1,2551.0,0.39185]
[1724917347761,5.99204525,2551.1,2551.0,3.134]
[1724917347965,7.01858322,2551.1,2551.0,3.134]
[1724917348955,10.60984525,2551.1,2550.8,1.02612883]
[1724917349263,0.39188,2550.9,2550.7,1.21876649]
[1724917349455,0.39188,2550.9,2550.8,3.134]
[1724917349963,0.39188,2550.9,2550.8,7.054]
[1724917350354,1.41823201,2551.0,2550.8,7.054]
[1724917350555,1.41823201,2551.0,2550.8,3.134]
[1724917350755,4.48019267,2550.9,2550.8,3.134]
[1724917351157,4.48019267,2550.9,2550.8,7.054]
[1724917351662,4.48019267,2550.9,2550.8,7.44589]
[1724917351965,4.48019267,2550.9,2550.8,7.054]
[1724917352161,4.48019267,2550.9,2550.8,7.44589]
[1724917352664,4.48019267,2550.9,2550.8,7.054]
[1724917352864,4.48019267,2550.9,2550.8,3.134]
[1724917353056,4.48019267,2550.9,2550.8,3.52589]
[1724917353456,4.48019267,2550.9,2550.8,5.32021883]
[1724917354152,4.48019267,2550.9,2550.8,4.29409]
[1724917354359,4.48019267,2550.9,2550.8,5.32021883]
[1724917356057,4.22753875,2551.0,2550.9,0.39186]
[1724917356257,1.02636201,2551.0,2550.9,0.76726]
[1724917356555,5.33466938,2551.0,2550.9,0.76726]
[1724917357755,4.30830737,2551.0,2550.9,0.76726]
[1724917363256,4.30830737,2551.0,2550.9,1.79338883]
[1724917363455,4.30830737,2551.0,2550.9,3.75271342]
[1724917363661,4.30830737,2551.0,2550.9,4.26603764]
[1724917363861,4.30830737,2551.0,2550.9,5.24573764]
[1724917364465,1.76626201,2551.3,2551.2,0.39183]
[1724917364765,5.88803549,2551.3,2551.2,0.39183]
[1724917367062,6.27985549,2551.3,2551.1,40.8]
[1724917367276,1.02636201,2551.2,2551.1,0.39184]
[1724917367570,1.02636201,2551.2,2551.0,0.39185]
[1724917367773,5.2966715,2551.2,2551.0,0.39185]
[1724917368073,5.6885015,2551.2,2551.0,0.39185]
[1724917368367,5.6885015,2551.2,2550.9,40.8]
[1724917368558,5.6885015,2551.2,2550.9,41.19187]
[1724917368964,5.6885015,2551.2,2550.8,4.55074635]
[1724917368965,0.39186,2551.1,2550.8,4.55143635]
[1724917369170,0.3698,2551.0,2550.8,4.55143635]
[1724917369468,0.3762,2550.9,2550.8,45.35143635]
[1724917369667,0.3762,2550.9,2550.8,47.31139233]
[1724917369967,4.57355773,2550.9,2550.8,44.95954635]
[1724917370158,4.57355773,2550.9,2550.8,43.934]
[1724917370667,4.57355773,2550.9,2550.8,44.95954635]
[1724917370975,4.57355773,2550.9,2550.8,45.35143635]
[1724917372170,4.57355773,2550.9,2550.8,4.55143635]
[1724917372968,4.57355773,2550.9,2550.8,4.15954635]
[1724917373366,4.57355773,2550.9,2550.8,4.55143635]
[1724917373573,4.57355773,2550.9,2550.8,4.15954635]
[1724917374961,4.57355773,2550.9,2550.8,6.51146283]
[1724917375161,4.57355773,2550.9,2550.8,7.0248728]
[1724917375361,4.57355773,2550.9,2550.8,5.48591648]
[1724917375977,4.57355773,2550.9,2550.8,2.35191648]
[1724917376178,4.57355773,2550.9,2550.8,5.48191648]
[1724917376363,4.57355773,2550.9,2550.8,6.50891265]
[1724917376766,4.57355773,2550.9,2550.8,7.02085118]
[1724917379380,4.96543773,2550.9,2550.8,6.62896118]
[1724917379583,4.96543773,2550.9,2550.8,4.15726392]
[1724917379886,6.50548897,2550.9,2550.8,4.15726392]
[1724917380070,4.96543773,2550.9,2550.8,4.15726392]
[1724917380367,6.50548897,2550.9,2550.8,4.15726392]
[1724917380571,6.50548897,2550.9,2550.8,3.13]
[1724917380771,4.96543773,2550.9,2550.8,3.13]
[1724917381682,7.01321796,2550.9,2550.8,3.13]
[1724917382175,0.39189,2550.8,2550.7,1.03314305]
[1724917382381,1.93312272,2550.8,2550.7,2.99329239]
[1724917382681,1.93312272,2550.8,2550.7,1.03314305]
[1724917384781,14.29285526,2550.8,2550.7,0.00587913]
[1724917385080,16.34063549,2550.8,2550.7,0.00587913]
[1724917385276,16.34730386,2550.8,2550.7,0.00587913]
[1724917388289,15.36756386,2550.8,2550.7,0.00587913]
[1724917389786,16.34730386,2550.8,2550.7,0.00587913]
[1724917394286,14.29285526,2550.8,2550.7,0.00587913]
[1724917395294,11.08505526,2550.8,2550.7,0.00587913]
[1724917395786,12.62418579,2550.8,2550.7,0.00587913]
[1724917396497,4.38262526,2550.8,2550.7,0.39778913]
[1724917396688,5.92175579,2550.8,2550.7,1.80778913]
[1724917396884,4.38262526,2550.8,2550.7,1.80778913]
[1724917397597,2.66430053,2551.0,2550.7,1.80778913]
[1724917397598,6.03159843,2550.9,2550.7,1.80778913]
[1724917397794,6.03159843,2550.9,2550.8,0.74239]
[1724917397999,2.0544486,2551.1,2550.8,0.74239]
[1724917398000,1.53913053,2551.1,2550.9,0.39188]
[1724917398188,2.28023053,2551.2,2551.0,0.7291]
[1724917398487,4.21118964,2551.1,2551.0,0.7291]
[1724917399992,4.21118964,2551.1,2551.0,1.12096]
[1724917402196,4.23080696,2551.2,2551.1,0.39184]
[1724917402601,1.53913053,2551.3,2551.1,0.39184]
[1724917402798,4.48949178,2551.2,2551.1,0.39184]
[1724917403596,1.54500966,2551.4,2551.3,0.39181]
[1724917403899,0.00587913,2551.4,2551.3,5.72101]
[1724917404100,0.00587913,2551.4,2551.3,10.26367392]
[1724917404501,0.00587913,2551.4,2551.3,9.23641]
[1724917405797,1.53913053,2551.8,2551.7,0.39175]
[1724917406196,4.0970727,2551.8,2551.7,0.39175]
[1724917408793,4.0970727,2551.8,2551.5,1.41]
[1724917408994,4.0970727,2551.8,2551.6,0.39176]
[1724917413604,4.0970727,2551.8,2551.7,0.39175]
[1724917413908,4.0970727,2551.8,2551.6,0.39176]
[1724917414711,4.4888127,2551.8,2551.5,0.39177]
[1724917414902,5.5070727,2551.8,2551.4,3.9471]
[1724917415103,5.5070727,2551.8,2551.3,3.90721]
[1724917415104,0.39178,2551.5,2551.2,3.126]
[1724917415400,4.68133811,2551.4,2551.3,0.39181]
[1724917415802,4.68133811,2551.4,2551.2,3.87562]
[1724917416012,4.68133811,2551.4,2551.3,0.39181]
[1724917417202,5.07314811,2551.4,2551.2,3.87563]
[1724917417496,0.39181,2551.3,2551.2,0.3578]
[1724917417702,0.39181,2551.3,2551.2,3.4838]
[1724917417900,4.5879207,2551.3,2551.2,3.4838]
[1724917418105,0.39183,2551.2,2551.1,6.3338]
[1724917418416,4.38819802,2551.2,2551.1,6.72564]
[1724917418608,4.38819802,2551.2,2551.1,6.3338]
[1724917419124,4.38819802,2551.2,2551.1,3.2078]
[1724917419125,6.19002802,2551.2,2551.1,3.2078]
[1724917419409,5.72183,2551.2,2551.1,3.2078]
[1724917419807,9.86217412,2551.2,2551.1,3.2078]
[1724917420013,4.53217412,2551.2,2551.1,3.2078]
[1724917422219,4.53217412,2551.2,2550.9,6.3338]
[1724917422517,0.7571,2551.1,2550.9,6.3338]
[1724917423020,4.10778868,2551.0,2550.9,6.3338]
[1724917423717,4.47108868,2551.0,2550.9,6.3338]
[1724917424612,4.47108868,2551.0,2550.9,6.72568]
[1724917425518,4.47108868,2551.0,2550.9,6.3338]
[1724917428622,4.86294868,2551.0,2550.9,6.3338]
[1724917429320,4.86294868,2551.0,2550.9,3.126]
[1724917429511,8.78294868,2551.0,2550.9,3.126]
[1724917429922,0.39189,2550.8,2550.7,0.00587913]
[1724917430123,6.70243,2550.8,2550.7,0.00587913]
[1724917430319,11.12523769,2550.8,2550.7,0.00587913]
[1724917436527,12.14953912,2550.8,2550.7,0.00587913]
[1724917437428,0.39195,2550.4,2550.3,40.8]
[1724917437825,4.88156006,2550.4,2550.3,40.8]
[1724917438425,0.39197,2550.3,2550.2,3.2078]
[1724917438722,5.47813054,2550.3,2550.2,3.2078]
[1724917438927,0.39198,2550.2,2550.1,0.00587913]
[1724917439124,1.80198,2550.2,2550.1,0.00587913]
[1724917439328,6.13814054,2550.2,2550.1,0.00587913]
[1724917439630,4.72814054,2550.2,2550.1,0.00587913]
[1724917442127,4.33616054,2550.2,2550.1,0.35887913]
[1724917442724,4.72814054,2550.2,2550.1,0.35887913]
[1724917442925,4.33616054,2550.2,2550.1,0.35887913]
[1724917445838,4.33616054,2550.2,2550.1,0.75087913]
[1724917446238,4.72814054,2550.2,2550.1,0.35887913]
[1724917446735,4.33616054,2550.2,2550.1,0.35887913]
[1724917447033,4.33616054,2550.2,2550.1,0.75087913]
[1724917447625,4.72814054,2550.2,2550.1,0.35887913]
[1724917448122,4.72814054,2550.2,2550.1,0.00587913]
[1724917448735,5.09264054,2550.2,2550.1,0.00587913]
[1724917453336,5.09264054,2550.2,2550.1,0.39787913]
[1724917453640,4.70066054,2550.2,2550.1,0.39787913]
[1724917453838,5.09264054,2550.2,2550.1,0.00587913]
[1724917454948,4.70066054,2550.2,2550.1,0.39787913]
[1724917455733,5.09264054,2550.2,2550.1,0.39787913]
[1724917455940,4.70066054,2550.2,2550.1,0.39787913]
[1724917456141,4.70066054,2550.2,2550.1,0.78517913]
[1724917457729,4.33616054,2550.2,2550.1,0.78517913]
[1724917458035,4.2945411,2550.4,2550.3,0.39196]
[1724917458440,4.31275,2550.4,2550.3,0.39196]
[1724917458632,8.47893258,2550.4,2550.3,0.39196]
[1724917459249,4.55813258,2550.4,2550.3,0.39196]
[1724917460638,4.55813258,2550.4,2550.2,0.75638]
[1724917461037,0.39197,2550.3,2550.2,0.3644]
[1724917461246,5.57618258,2550.4,2550.1,0.00587913]
[1724917461543,1.52168,2550.2,2550.1,0.00587913]
[1724917462046,5.82254225,2550.2,2550.1,0.00587913]
[1724917463647,6.80251225,2550.2,2550.1,0.00587913]
[1724917471646,11.74841368,2550.2,2550.1,0.00587913]
[1724917472252,10.72411225,2550.2,2550.1,0.00587913]
[1724917472449,12.26324278,2550.2,2550.1,0.00587913]
[1724917474453,10.72411225,2550.2,2550.1,0.00587913]
[1724917475654,12.77856085,2550.2,2550.1,0.00587913]
[1724917480851,10.72411225,2550.2,2550.1,0.00587913]
[1724917481052,6.80251225,2550.2,2550.1,0.00587913]
[1724917482660,10.72411225,2550.2,2550.1,0.00587913]
[1724917483745,12.77924771,2550.2,2550.1,0.00587913]
[1724917484556,10.72411225,2550.2,2550.1,0.00587913]
[1724917487560,6.80251225,2550.2,2550.1,0.00587913]
[1724917487763,5.82254225,2550.2,2550.1,0.00587913]
[1724917487964,4.30086225,2550.2,2550.1,0.39787913]
[1724917488168,4.30086225,2550.2,2550.1,0.76157913]
[1724917488560,4.30086225,2550.2,2550.1,41.56157913]
[1724917488959,6.35706913,2550.2,2550.1,44.55056594]
[1724917489264,2.05620688,2550.2,2550.1,44.55056594]
[1724917489467,2.05620688,2550.2,2550.1,3.75056594]
[1724917489655,6.48642625,2550.2,2550.1,3.75056594]
[1724917489862,6.48642625,2550.2,2550.1,3.75056781]
[1724917490657,6.48642625,2550.2,2550.1,4.73057781]
[1724917491262,6.48642625,2550.2,2550.1,8.65217781]
[1724917492569,6.48642625,2550.2,2550.1,7.67216781]
[1724917493160,4.43021937,2550.2,2550.1,6.64379974]
[1724917493567,6.38962244,2550.3,2550.2,0.39198]
[1724917493769,2.05620688,2550.3,2550.2,1.42046496]
[1724917494072,6.55087944,2550.3,2550.2,1.79676496]
[1724917496773,4.88664256,2550.3,2550.2,1.02848496]
[1724917496963,0.39198,2550.2,2550.1,1.03436409]
[1724917497159,3.20593023,2550.2,2550.1,1.03436409]
[1724917497355,7.48286505,2550.2,2550.1,1.03436409]
[1724917497755,6.40668482,2550.2,2550.1,1.03436409]
[1724917498169,6.40668482,2550.2,2550.1,0.00587913]
[1724917502465,8.97560414,2550.2,2550.1,0.00587913]
[1724917504164,11.34630482,2550.2,2549.8,1.02848496]
[1724917504470,0.39205,2549.8,2549.7,1.02848496]
[1724917504667,2.44809434,2549.8,2549.7,1.02848496]
[1724917504865,7.32020661,2549.8,2549.7,1.02848496]
[1724917505264,5.26416227,2549.8,2549.7,2.98941418]
[1724917505470,5.26416227,2549.8,2549.7,1.02848496]
[1724917506177,5.26416227,2549.8,2549.7,5.34214496]
[1724917506178,4.15251227,2549.8,2549.7,5.34214496]
[1724917506370,5.69445571,2549.8,2549.7,8.20344621]
[1724917506574,4.15251227,2549.8,2549.7,8.20344621]
[1724917506870,5.18046876,2549.8,2549.7,8.20344621]
[1724917507371,4.15251227,2549.8,2549.7,8.20344621]
[1724917507580,5.18040662,2549.8,2549.7,8.20344621]
[1724917507782,4.15251227,2549.8,2549.7,8.20344621]
[1724917508279,5.18027602,2549.8,2549.7,6.6608941]
[1724917508471,5.18027602,2549.8,2549.7,6.66077439]
[1724917509178,5.18027602,2549.8,2549.7,8.71751053]
[1724917509389,5.18027602,2549.8,2549.7,7.64093439]
[1724917509572,4.15251227,2549.8,2549.7,8.71751053]
[1724917510181,4.15251227,2549.8,2549.7,11.83451053]
[1724917511068,4.15251227,2549.8,2549.7,15.75591897]
[1724917512573,4.15251227,2549.8,2549.7,16.73607897]
[1724917512879,10.46423227,2549.8,2549.6,1.02817796]
[1724917513081,1.37233,2549.5,2549.4,1.02229883]
[1724917513379,0.39214,2549.2,2549.1,1.92076694]
[1724917513581,0.39215,2549.1,2549.0,3.2078]
[1724917513776,1.93078342,2549.1,2549.0,3.2078]
[1724917513995,6.40375403,2549.1,2549.0,3.2078]
[1724917514875,4.47297061,2549.1,2549.0,3.2078]
[1724917515082,4.86512061,2549.1,2549.0,3.2078]
[1724917515277,0.39215,2549.1,2549.0,3.2078]
[1724917515477,4.72915151,2549.1,2549.0,3.2078]
[1724917515872,4.72915151,2549.1,2549.0,7.131]
[1724917516277,5.75379178,2549.1,2549.0,7.131]